Cogmind - Beta 15 *** ADVENTURER MODE // 2025.07.23 @ 07:11:58 Player: LegoMDS Result: Destroyed by S-10 Pest with Light Assault Rifle Performance ------------- Evolutions (0) 0 Regions Visited (1) 200 Robots Destroyed (21) 105 Value Destroyed (434) 434 Prototype IDs (5) 100 Alien Tech Used (0) 0 Bonus (0) 0 TOTAL SCORE: 839 Bonus ------- None Cogmind --------- Core Integrity 0/250 Matter 253/300 Energy 250/250 System Corruption 0% Temperature Cool (0) Movement Walking (120) Location -10/Materials Parts ------- > --- POWER (1) -------- Ion Engine > --- PROPULSION (2) --- Aluminum Leg Aluminum Leg > --- UTILITY (2) ------ Small Storage Unit Targeting Computer > --- WEAPON (2) ------- Light Cannon > --- INVENTORY (8) ---- Aluminum Leg Heat Sink Signal Interpreter Propulsion Shielding Utility Shielding EM Pulse Gun Grenade Launcher Peak State ------------ > --- POWER ------------ Light Ion Engine > --- PROPULSION ------- Aluminum Leg Aluminum Leg > --- UTILITY ---------- Small Storage Unit Targeting Computer > --- WEAPON ----------- Medium Laser Light Assault Rifle > --- INVENTORY -------- Aluminum Leg Aluminum Leg Aluminum Leg Propulsion Shielding EM Pulse Gun Light Assault Rifle [Rating: 7] Favorites ----------- Power Light Ion Engine Engine Light Ion Engine Propulsion Aluminum Leg Leg Aluminum Leg Utility Small Storage Unit Storage Small Storage Unit Processor Targeting Computer Weapon Light Assault Rifle Energy Gun Medium Laser Ballistic Gun Light Assault Rifle Ballistic Cannon Light Cannon Special Weapon Mining Laser Build | -11 -10 ------- Run | Yrd Mat Slots Evolved . | . . Power . | . . Propulsion . | . . Utility . | . . Weapon . | . . Parts Attached 20 | 6 14 Power 4 | 1 3 Engine 4 | 1 3 Core . | . . Reactor . | . . Propulsion 9 | 2 7 Treads . | . . Leg 9 | 2 7 Wheel . | . . Hover . | . . Flight . | . . Utility 2 | 1 1 Device . | . . Storage 1 | 1 . Processor 1 | . 1 Hackware . | . . Protection . | . . Artifact . | . . Weapon 5 | 2 3 Energy Gun 1 | 1 . Energy Cannon . | . . Ballistic Gun 2 | 1 1 Ballistic Cannon 1 | . 1 Launcher . | . . Special Weapon 1 | . 1 Impact Weapon . | . . Slashing Weapon . | . . Piercing Weapon . | . . Special Melee Weapon . | . . Unidentified Prototypes . | . . Parts Lost 8 | . 8 Power 2 | . 2 Propulsion 2 | . 2 Utility . | . . Weapon 4 | . 4 Highest Loss Streak 3 | . 3 To Critical Strikes . | . . Average Backups 6 | 1 6 Power . | . . Propulsion 1 | . 1 Utility 2 | . 2 Weapon 2 | 1 2 Tool/Special . | . . Unused Backups 8 | . 8 Power . | . . Propulsion 1 | . 1 Utility 5 | . 5 Weapon 2 | . 2 Tool/Special . | . . Average Slot Usage (%) 88 | . 88 Engine 10 | . 10 Leg 27 | . 27 Storage 14 | . 14 Processor 9 | . 9 Energy Gun 7 | . 7 Ballistic Gun 11 | . 11 Ballistic Cannon 2 | . 2 Special Weapon 4 | . 4 Peak Build Rating 7 | 6 7 Average Rating 6 | 4 6 On Entrance 3 | . 6 Naked Turns . | . . Heaviest Build 14 | 13 14 Greatest Support 20 | 20 20 Greatest Overweight (x) . | . . Average Overweight (x) . | . . Largest Inventory Capacity 8 | 8 8 Average Capacity 7 | 6 8 Most Carried 8 | 4 8 Average Carried 6 | 1 6 Final Capacity 8 | 8 8 Final Carried 7 | 2 7 Class Distribution -------------------- 90% | Mutant 9% | Scavenger-Mutant Dominant Class ---------------- Mutant | -10/Materials Resources | -11 -10 ----------- Run | Yrd Mat Matter Collected 486 | 238 248 Remotely . | . . Salvage Created 527 | . 527 Parts 29 | . 29 Haulers Intercepted 2 | . 2 Recyclers Shooed . | . . Parts Field Recycled . | . . Retrieved Matter . | . . Parts Self-Destructed . | . . Prevented . | . . Kills | -11 -10 ------- Run | Yrd Mat Combat Hostiles Destroyed 17 | . 17 Guns 10 | . 10 Cannons 6 | . 6 Classes Destroyed 4 | . 4 Hauler 2 | . 2 Watcher 2 | . 2 Swarmer 9 | . 9 Grunt 8 | . 8 Best Kill Streak 4 | . 4 Combat Bots Only 4 | . 4 Max Kills in Single Turn 2 | . 2 Gunslinging 1 | . 1 Exploded . | . . Melee . | . . Uniques/NPCs Destroyed . | . . Combat | -11 -10 -------- Run | Yrd Mat Hostile Shots Fired 172 | . 172 Missed 50 | . 50 Hits 122 | . 122 Projectile 122 | . 122 Critical Strikes 1 | . 1 Damage Taken 1192 | . 1192 Core 252 | . 252 Absorbed by Shields . | . . Ignored by Resistances 358 | . 358 Core Remaining (%) 100 | 100 . Volleys Fired 85 | . 85 Largest 2 | . 2 Hottest 100 | . 100 Shots Fired 142 | . 142 Gun 117 | . 117 Cannon 24 | . 24 Launcher . | . . Special 1 | . 1 Kinetic 87 | . 87 Thermal 55 | . 55 Explosive . | . . Electromagnetic . | . . Robot Hit Streak 23 | . 23 Robot Miss Streak 3 | . 3 Penetration Max . | . . Secondary Targets 6 | . 6 Max Gunslinging Chain 1 | . 1 Shots Hit Robots 116 | . 116 Core Hits 38 | . 38 Critical Kills . | . . Critical Parts Destroyed 1 | . 1 Critical Strikes 9 | . 9 Burn 7 | . 7 Destroy 1 | . 1 Blast 1 | . 1 Melee Attacks . | . . Impact . | . . Slashing . | . . Piercing . | . . Sneak Attacks . | . . Combat Hostiles . | . . Follow-up Attacks . | . . Damage Inflicted 1305 | . 1305 Guns 1014 | . 1014 Cannons 291 | . 291 Explosions . | . . Melee . | . . Ramming . | . . Kinetic 730 | . 730 Thermal 575 | . 575 Explosive . | . . Electromagnetic . | . . Impact . | . . Slashing . | . . Piercing . | . . Highest Corruption . | . . Average Corruption . | . . Corruption Purged . | . . Corruption Blocked . | . . Overload Shots . | . . Overflow Damage . | . . Projectiles . | . . Explosions . | . . Melee . | . . Knockbacks 4 | . 4 Impact . | . . Kinetic 4 | . 4 Secondary . | . . Self-Inflicted Damage . | . . Shots . | . . Rammed . | . . Targets Rammed . | . . Kicked . | . . Crushed . | . . Highest Temperature 225 | . 225 Average Temperature 96 | . 96 Received Heat Transfer 372 | . 372 Siege Activations . | . . Martial Activations . | . . Shielding Activations . | . . Robots Disrupted . | . . Combat Hostiles . | . . Robots Corrupted . | . . Combat Hostiles . | . . Parts Fried . | . . Impact Corruptions . | . . Robots Melted 1 | . 1 Combat Hostiles 1 | . 1 Parts Melted 6 | . 6 Heat Transferred 2220 | . 2220 Parts Sabotaged . | . . Parts Stolen . | . . Parts Stripped . | . . Power Chain Reactions . | . . Alert | -11 -10 ------- Run | Yrd Mat Maximum Alert Level . | . . Low Security (%) 100 | 100 100 Level 1 . | . . Level 2 . | . . Level 3 . | . . Level 4 . | . . Level 5 . | . . High Security . | . . Max Security . | . . Peak Influence 133 | . 133 Initial . | . . Average 51 | . 54 Influence Increases 477 | . 477 Destroy 0b10 Robot/C 340 | . 340 Destroy 0b10 Robot/NC 20 | . 20 Destroy Leader 78 | . 78 Successful Hack 14 | . 14 Disable Machine 9 | . 9 Destroy Structure 1 | . 1 Lose Combat Pursuer 15 | . 15 Influence Decreases 378 | . 378 Time Decay 325 | . 325 Lost Part 53 | . 53 Squads Dispatched 1 | . 1 Investigation 1 | . 1 Extermination . | . . Reinforcement . | . . Assault . | . . Garrison . | . . Intercept . | . . Searches Triggered . | . . Construction Impeded . | . . Haulers Reinforced . | . . Active Scanning Responses . | . . Cargo Convoy Interrupts . | . . Stealth | -11 -10 --------- Run | Yrd Mat Distress Signals 2 | . 2 Communications Jammed . | . . Distress Signals . | . . Times Spotted 28 | . 28 Peak Tracking Total 5 | . 5 Tactical Retreats 2 | . 2 Traps | -11 -10 ------- Run | Yrd Mat Traps Triggered 2 | . 2 Indirectly . | . . Trap Hack Attempts . | . . Triggered . | . . Disarmed . | . . Reprogrammed . | . . Reused . | . . Traps Extracted . | . . Installed . | . . Triggered . | . . Machines | -11 -10 ---------- Run | Yrd Mat Machines Disabled 1 | . 1 Max in Single Turn 1 | . 1 Machines Repaired . | . . Machines Dismantled . | . . Machines Sabotaged . | . . Overloaded Fab Kills . | . . Hacking | -11 -10 --------- Run | Yrd Mat Machines Accessed 6 | . 6 Terminals 6 | . 6 Fabricators . | . . Repair Stations . | . . Recycling Units . | . . Scanalyzers . | . . Garrison Access . | . . Total Hacks 13 | . 13 Successful 9 | . 9 Failed 4 | . 4 Catastrophic 1 | . 1 Database Lockouts . | . . Manual 1 | . 1 Terminals 13 | . 13 Fabricators . | . . Repair Stations . | . . Recycling Units . | . . Scanalyzers . | . . Garrison Access . | . . Terminal Hacks 9 | . 9 Prototype ID Bank 4 | . 4 Emergency Access Points 1 | . 1 Recall Investigation 1 | . 1 Hauler Manifests 1 | . 1 Registered Components 1 | . 1 Zone Layout 1 | . 1 Fabricator Hacks . | . . Repair Station Hacks . | . . Recycling Unit Hacks . | . . Scanalyzer . | . . Garrison Access Hacks . | . . Unauthorized Hacks . | . . Terminals . | . . Fabricators . | . . Repair Stations . | . . Recycling Units . | . . Scanalyzers . | . . Garrison Access . | . . Data Cores Recovered . | . . Used . | . . Hacking Detections 2 | . 2 Full Trace Events 1 | . 1 Feedback Events . | . . Feedback Blocked . | . . Robot Schematics Acquired . | . . Robots Built . | . . Authchips . | . . Time . | . . Total Robot Build Rating . | . . Part Schematics Acquired . | . . Parts Built . | . . Authchips . | . . Time . | . . Total Part Build Rating . | . . Parts Repaired . | . . Time . | . . Parts Recycled . | . . Recycled Matter . | . . Retrieved Matter . | . . Retrieved Components . | . . Parts Scanalyzed . | . . Part Schematics Acquired . | . . Parts Damaged . | . . Bothacking | -11 -10 ------------ Run | Yrd Mat Used RIF Installer . | . . Robots Hacked . | . . Non-combat . | . . Combat . | . . Robot Hacks Applied . | . . Relay Couplers Released . | . . Fabnet Peak Effective % . | . . Robots Rewired . | . . Allies Hacked . | . . Hacks Repelled . | . . Allies | -11 -10 -------- Run | Yrd Mat Total Allies . | . . Largest Group . | . . Highest-Rated Group . | . . Highest-Rated Ally . | . . Total Orders . | . . Ally Attacks . | . . Total Damage . | . . Kills . | . . Allies Corrupted . | . . Allies Melted . | . . Intel | -11 -10 ------- Run | Yrd Mat Active Infowar (turns) . | . . Robot Analysis Total . | . . Derelict Logs Recovered . | . . Drone Launches . | . . Drone Recoveries . | . . Exploration | -11 -10 ------------- Run | Yrd Mat Turns Passed 935 | 46 889 Spaces Moved 547 | 32 515 Core 8 | 8 . Treads . | . . Legs 539 | 24 515 Wheels . | . . Hover . | . . Flight . | . . Fastest Speed 50 | 50 120 Average Speed 118 | 102 120 Slowest Speed 120 | 120 120 Overloaded Moves . | . . Propulsion Burnouts . | . . Robots Hopped . | . . Potential Cave-ins . | . . Cave-ins Triggered . | . . Exploration Rate (%) 45 | 3 87 Regions Visited 1 Branch Regions . Pre-discovered Areas . | . . Known Exits Taken . | . . Unknown Exits Taken 1 | 1 . Scrap Searched . | . . Spaces Dug 1 | . 1 Terrain Destroyed 1 | . 1 Melee . | . . Projectile 1 | . 1 AOE . | . . Terrain Rammed . | . . Walls Destroyed . | . . Machines Disabled . | . . Actions | -11 -10 --------- Run | Yrd Mat Total 705 | 45 660 Wait 22 | . 22 Move 546 | 31 515 Hop . | . . Pick Up 24 | 8 16 Fast Attach . | . . Attach 14 | 6 8 Detach . | . . Swap 6 | . 6 Drop 8 | . 8 Fire 85 | . 85 Melee . | . . Ram . | . . Kick . | . . Crush . | . . Escape Stasis . | . . Rewire . | . . Trap . | . . Miscellaneous . | . . Route ------- -11/Scrapyard -10/Materials (discovered 6 exits: [*Mat x3] / [*Min x2] / [*Sub]) History --------- Turn | Location | Event 5 | -11/Scrapyard | Discovered new exit (range 16) 47 | -11/Scrapyard | Entered Materials 235 | -10/Materials | Discovered new exit (range 15) 320 | -10/Materials | Build established: Mutant 445 | -10/Materials | Discovered new exit (range 9) 469 | -10/Materials | Discovered new exit (range 16) 547 | -10/Materials | Derelicts attacked the area 614 | -10/Materials | Core integrity fell below 50% 645 | -10/Materials | Core integrity fell below 20% 665 | -10/Materials | Discovered new exit (range 8) 669 | -10/Materials | Lost 3 parts (1n2w) 699 | -10/Materials | Discovered new exit (range 12) 734 | -10/Materials | Discovered new exit (range 13) 936 | -10/Materials | Destroyed by S-10 Pest with Light Assault Rifle Last Messages --------------- Acquired 2 matter. Acquired 23 matter. Dropped Heat Sink. Acquired Heat Sink. Dropped Lgt. Ion Engine. Dropped Aluminum Leg. Atomic Centrifuge disabled. S-10 Pest knocked back. S-10 Pest destroyed. Dropped Scrap Shield Fragment. S-10 Pest destroyed. Acquired 12 matter. Acquired 8 matter. R-06 Scavenger collects Sml. Laser. S-10 Pest destroyed. Acquired 22 matter. K-01 Serf collects debris. S-10 Pest Lgt. Ion Engine blasted off. S-10 Pest destroyed. Mining Laser destroyed. Map ----- +----------------------------------------------------+ | #???"|||"?????# """ #????# # #??? ?? | | #?#"" ""????# """ #????# ###+########+##?? | | #?# ????# """ #????# ### | | #?# < ????# #????# | | #?? ?????#""" #????# ### | | ?? ?????#"R ! #????# ###############?? | | #??? ??????""" #????# #??############## | | +##### #???????? ??????#%[ #??# # T | | # ###########+######### [ #??# "" # """" | | """ + # # #??# "T # ! """" | | """ # # """ + %= #### "" # """" | | """ # # """ # = + # | | """ =# """ # #########+#######+#######+## | | """ # #???# # # # | | """ # """ # #???# # + | | """ + """ + ???+ """ # / # | | # # """ # ##??# """ # # # | | ###### # # #???# " """ # ###### | | # ########## #???# T # #?#### | | + &&#???# " # #?# | | # ^ !%=#???# # #?# "" | | # %#???###################?# "" | | # ^ #?????#########???####### "" | | # """ """ ####### ##### # "" | | # """ "" s% # "" | | # "" """ @ % < % [*% + "" | | # % % % # "" | | ###### ####### ##### # | | ?????# """ #?????# "!" " #???#####%#### | | ?????# [ """ #?????#""!"|""#??????# | | ??#### """ #?#################### | | ??# #? #?# # | | ??# <& "T" # #?# # ### | | ??#*= """ # """ #?# """ """ # # | | ??##=########+##### + """ #?# """ """ # # | | ???#%#????? ??# # """ #?# """ """ # + | | ???# #????# """ ## # #?# # # | | ####!#????# """ ## ##+#####?# + # | | # #????# """ ## # ]] #########+####### # | | # #????# ## + ] # ?# ####### ### | | # #????# ## # # """ # # # # | | # #?########+### # + """ # # # # | | # ### # # "" # """ + + # # | | " + ## " ] """ # # Y" # """ # # # # | | "" # + T """ # # "" # # # ! # # | | "" # ## " """ # # ######?# ####### # | | "" # ## # ##+###??????# ####### ### | | " # #########+### ########## | | + | | #### ^ ^ | +----------------------------------------------------+ Best States ------------- Heat Dissipation 25 Energy Generation 10 Energy Capacity 250 Matter Stores 300 Matter Capacity 300 Sight Range 16 Terrain Scan Density 10 Resistance: KI 20 Resistance: TH 20 Resistance: EX 20 Resistance: EM 20 Resistance: I 20 Resistance: S 20 Resistance: P 20 Evasion (%) 55 Targeting Accuracy 5 Offensive Hacking 10 Item Schematics ----------------- None Robot Schematics ------------------ None Fabricated ------------ Nothing Repaired ---------- Nothing Alien Tech Used ----------------- None Achievements -------------- None Challenges ------------ None Game ------ Seed OmegaArcsightCannon Manual? 0 Play Time 00:09:43 Cumulative 78.4 hours Start 2025.07.23 @ 07:03:00 End 2025.07.23 @ 07:11:58 Sessions 1 Manual Loads 0 Difficulty Adventurer Special Mode None Game No. 100 Rogue 13 Adventurer 87 Explorer 0 Win Type - Total 0 Types 0/0/0/0/0/0/0/0/0/0 Lore% 59 Gallery% 56 Achievement% 46 Wizard Run 0 Options --------- Layout 1 ASCII 0 Keyboard 0 Movement Mouse Keybinds 0 Fullscreen 1 Font 32/SmallcapsGlow Map View 50x35 Zoom Use 0% Tactical HUD 0 Map Filters NONE Filters NONE Steam 1 RUN: afce6f21-cac5-4984-a50b-dc665043f350